Cogmind - Beta 14 @@@ ROGUE MODE // 2025.03.05 @ 14:47:22 Player: Count Orlok With a MLite Result: Destroyed by as-14554 with Assembled Blade Performance ------------- Evolutions (0) 0 Regions Visited (2) 400 Robots Destroyed (10) 50 Value Destroyed (286) 286 Prototype IDs (0) 0 Alien Tech Used (0) 0 Bonus (0) 0 TOTAL SCORE: 736 Bonus ------- None Cogmind --------- Core Integrity 0/250 Matter 271/300 Energy 100/100 System Corruption 1% Temperature Cool (0) Movement Core (250) Ox4 Location -10/Mines Parts ------- > --- POWER (1) -------- (None) > --- PROPULSION (2) --- (None) > --- UTILITY (2) ------ Improved Heat Sink Medium Storage Unit > --- WEAPON (2) ------- Assault Rifle > --- INVENTORY (10) --- Light Ion Engine Aluminum Leg Aluminum Leg Small Storage Unit Targeting Computer Targeting Computer Datajack Peak State ------------ > --- POWER ------------ Ion Engine > --- PROPULSION ------- Light Treads Light Treads > --- UTILITY ---------- Improved Heat Sink Medium Storage Unit > --- WEAPON ----------- Particle Gun Beam Cannon > --- INVENTORY -------- Light Ion Engine Light Nuclear Core Aluminum Leg Aluminum Leg Small Storage Unit Targeting Computer Targeting Computer Assault Rifle Datajack [Rating: 11] Favorites ----------- Power Ion Engine Engine Ion Engine Power Core Light Nuclear Core Propulsion Light Treads Treads Light Treads Utility Medium Storage Unit Device Improved Heat Sink Storage Medium Storage Unit Weapon Assault Rifle Energy Gun Particle Gun Energy Cannon Beam Cannon Ballistic Gun Assault Rifle Build | -11 -10 -10 ------- Run | Yrd Mat Min Slots Evolved . | . . . Power . | . . . Propulsion . | . . . Utility . | . . . Weapon . | . . . Parts Attached 14 | 7 4 3 Power 3 | 1 1 1 Engine 2 | 1 1 . Core 1 | . . 1 Reactor . | . . . Propulsion 2 | 2 . . Treads 2 | 2 . . Leg . | . . . Wheel . | . . . Hover . | . . . Flight . | . . . Utility 4 | 2 2 . Device 2 | 1 1 . Storage 2 | 1 1 . Processor . | . . . Hackware . | . . . Protection . | . . . Artifact . | . . . Weapon 5 | 2 1 2 Energy Gun 1 | . . 1 Energy Cannon 1 | . 1 . Ballistic Gun 3 | 2 . 1 Ballistic Cannon . | . . . Launcher . | . . . Special Weapon . | . . . Impact Weapon . | . . . Slashing Weapon . | . . . Piercing Weapon . | . . . Special Melee Weapon . | . . . Unidentified Prototypes . | . . . Parts Lost 8 | . 1 7 Power 2 | . . 2 Propulsion 2 | . . 2 Utility 1 | . 1 . Weapon 3 | . . 3 Highest Loss Streak 7 | . 1 7 To Critical Strikes . | . . . Average Slot Usage (%) 98 | . 100 95 Engine 13 | . 14 12 Treads 27 | . 28 25 Device 14 | . 14 14 Storage 14 | . 14 14 Energy Cannon 12 | . 12 12 Ballistic Gun 14 | . 15 12 Peak Build Rating 11 | 7 9 11 Average Rating 8 | 5 8 9 On Entrance 5 | . 7 9 Naked Turns . | . . . Heaviest Build 21 | 15 21 21 Greatest Support 40 | 40 40 40 Greatest Overweight (x) . | . . . Average Overweight (x) . | . . . Largest Inventory Capacity 10 | 8 10 10 Average Capacity 9 | 6 9 10 Most Carried 10 | 3 9 10 Average Carried 6 | 1 6 9 Final Capacity 10 | 8 10 10 Final Carried 9 | 3 9 7 Class Distribution -------------------- 100% | Mutant Dominant Class ---------------- Mutant | -10/Materials Mutant | -10/Mines Resources | -11 -10 -10 ----------- Run | Yrd Mat Min Matter Collected 378 | 201 153 24 Remotely . | . . . Salvage Created 334 | 19 198 117 Parts 23 | 2 15 6 Haulers Intercepted . | . . . Recyclers Shooed . | . . . Parts Field Recycled . | . . . Retrieved Matter . | . . . Parts Self-Destructed . | . . . Prevented . | . . . Kills | -11 -10 -10 ------- Run | Yrd Mat Min Combat Hostiles Destroyed 13 | . 7 6 Guns 6 | . 1 5 Cannons 7 | . 6 1 Classes Destroyed 5 | 1 2 2 Tunneler 1 | 1 . . Swarmer 3 | . 3 . Grunt 5 | . 4 1 Demolisher 1 | . . 1 Assembled 4 | . . 4 Best Kill Streak 3 | 1 3 3 Combat Bots Only 3 | . 3 3 Max Kills in Single Turn 1 | 1 1 1 Gunslinging . | . . . Exploded . | . . . Melee . | . . . Uniques/NPCs Destroyed . | . . . Combat | -11 -10 -10 -------- Run | Yrd Mat Min Hostile Shots Fired 103 | . 26 77 Missed 34 | . 7 27 Damage Taken 1187 | . 195 992 Core 263 | . 18 245 Absorbed by Shields . | . . . Core Remaining (%) 100 | 100 . . Volleys Fired 42 | 1 15 26 Largest 2 | 2 2 2 Hottest 125 | 40 80 125 Shots Fired 77 | 2 30 45 Gun 42 | 2 15 25 Cannon 35 | . 15 20 Launcher . | . . . Special . | . . . Kinetic 33 | 2 15 16 Thermal 44 | . 15 29 Explosive . | . . . Electromagnetic . | . . . Robot Hit Streak 7 | 1 7 4 Robot Miss Streak 4 | . 2 4 Penetration Max . | . . . Secondary Targets . | . . . Shots Hit Robots 40 | 1 17 22 Core Hits 29 | 1 11 17 Critical Kills . | . . . Critical Parts Destroyed . | . . . Critical Strikes . | . . . Melee Attacks . | . . . Impact . | . . . Slashing . | . . . Piercing . | . . . Sneak Attacks . | . . . Combat Hostiles . | . . . Follow-up Attacks . | . . . Damage Inflicted 636 | 14 276 346 Guns 262 | 14 60 188 Cannons 370 | . 212 158 Explosions . | . . . Melee . | . . . Ramming 4 | . 4 . Kinetic 167 | 14 60 93 Thermal 465 | . 212 253 Explosive . | . . . Electromagnetic . | . . . Impact . | . . . Slashing . | . . . Piercing . | . . . Highest Corruption 1 | . 1 1 Average Corruption 1 | . 1 1 Corruption Purged . | . . . Corruption Blocked . | . . . Effects 1 | . . 1 Matter Fused 1 | . . 1 Overload Shots . | . . . Overflow Damage . | . . . Projectiles . | . . . Explosions . | . . . Melee . | . . . Knockbacks . | . . . Impact . | . . . Kinetic . | . . . Secondary . | . . . Self-Inflicted Damage . | . . . Shots . | . . . Rammed 1 | . 1 . Targets Rammed 1 | . 1 . Kicked . | . . . Crushed . | . . . Highest Temperature 177 | . 177 153 Average Temperature 74 | . 68 80 Received Heat Transfer 165 | . 75 90 Siege Activations . | . . . Robots Corrupted . | . . . Combat Hostiles . | . . . Parts Fried . | . . . Impact Corruptions . | . . . Robots Melted . | . . . Combat Hostiles . | . . . Parts Melted . | . . . Heat Transferred 999 | . 444 555 Parts Sabotaged . | . . . Parts Stolen . | . . . Parts Stripped . | . . . Power Chain Reactions . | . . . Alert | -11 -10 -10 ------- Run | Yrd Mat Min Peak Influence 180 | 5 180 46 Initial 11 | . 3 11 Average 52 | 2 67 36 Maximum Alert Level . | . . . Low Security (%) 100 | 100 100 100 Level 1 . | . . . Level 2 . | . . . Level 3 . | . . . Level 4 . | . . . Level 5 . | . . . High Security . | . . . Max Security . | . . . Squads Dispatched 1 | . 1 . Investigation . | . . . Extermination . | . . . Reinforcement 1 | . 1 . Assault . | . . . Garrison . | . . . Intercept . | . . . Searches Triggered . | . . . Construction Impeded . | . . . Haulers Reinforced . | . . . Active Scanning Responses . | . . . Cargo Convoy Interrupts . | . . . Stealth | -11 -10 -10 --------- Run | Yrd Mat Min Distress Signals . | . . . Communications Jammed . | . . . Distress Signals . | . . . Times Spotted 32 | . 11 21 Peak Tracking Total 6 | . 4 6 Tactical Retreats 2 | . 1 1 Traps | -11 -10 -10 ------- Run | Yrd Mat Min Traps Triggered 1 | . 1 . Indirectly . | . . . Trap Hack Attempts . | . . . Triggered . | . . . Disarmed . | . . . Reprogrammed . | . . . Reused . | . . . Traps Extracted . | . . . Installed . | . . . Triggered . | . . . Machines | -11 -10 -10 ---------- Run | Yrd Mat Min Machines Disabled . | . . . Max in Single Turn . | . . . Machines Repaired . | . . . Machines Dismantled . | . . . Machines Sabotaged . | . . . Overloaded Fab Kills . | . . . Hacking | -11 -10 -10 --------- Run | Yrd Mat Min Machines Accessed 3 | . 3 . Terminals 2 | . 2 . Fabricators . | . . . Repair Stations . | . . . Recycling Units 1 | . 1 . Scanalyzers . | . . . Garrison Access . | . . . Total Hacks 6 | . 6 . Successful 3 | . 3 . Failed 3 | . 3 . Catastrophic . | . . . Database Lockouts . | . . . Manual 2 | . 2 . Terminals 4 | . 4 . Fabricators . | . . . Repair Stations . | . . . Recycling Units 2 | . 2 . Scanalyzers . | . . . Garrison Access . | . . . Terminal Hacks . | . . . Fabricator Hacks . | . . . Repair Station Hacks . | . . . Recycling Unit Hacks 1 | . 1 . Report Inventory 1 | . 1 . Scanalyzer . | . . . Garrison Access Hacks . | . . . Unauthorized Hacks 2 | . 2 . Terminals 2 | . 2 . Botnet 2 | . 2 . Fabricators . | . . . Repair Stations . | . . . Recycling Units . | . . . Scanalyzers . | . . . Garrison Access . | . . . Data Cores Recovered . | . . . Used . | . . . Hacking Detections 2 | . 2 . Full Trace Events . | . . . Feedback Events . | . . . Feedback Blocked . | . . . Robot Schematics Acquired . | . . . Robots Built . | . . . Authchips . | . . . Time . | . . . Total Robot Build Rating . | . . . Part Schematics Acquired . | . . . Parts Built . | . . . Authchips . | . . . Time . | . . . Total Part Build Rating . | . . . Parts Repaired . | . . . Time . | . . . Parts Recycled . | . . . Recycled Matter . | . . . Retrieved Matter . | . . . Retrieved Components . | . . . Parts Scanalyzed . | . . . Part Schematics Acquired . | . . . Parts Damaged . | . . . Bothacking | -11 -10 -10 ------------ Run | Yrd Mat Min Used RIF Installer . | . . . Robots Hacked . | . . . Non-combat . | . . . Combat . | . . . Robot Hacks Applied . | . . . Relay Couplers Released . | . . . Fabnet Peak Effective % . | . . . Robots Rewired . | . . . Allies Hacked . | . . . Hacks Repelled . | . . . Allies | -11 -10 -10 -------- Run | Yrd Mat Min Total Allies 1 | . . 1 Largest Group 1 | . . 1 Highest-Rated Group 31 | . . 31 Highest-Rated Ally 31 | . . 31 Total Orders . | . . . Ally Attacks 10 | . . 10 Total Damage 169 | . . 169 Kills 3 | . . 3 Allies Corrupted . | . . . Allies Melted . | . . . Intel | -11 -10 -10 ------- Run | Yrd Mat Min Robot Analysis Total . | . . . Derelict Logs Recovered . | . . . Drone Launches . | . . . Drone Recoveries . | . . . Exploration | -11 -10 -10 ------------- Run | Yrd Mat Min Turns Passed 949 | 118 623 208 Spaces Moved 447 | 62 305 80 Core 2 | 2 . . Treads 445 | 60 305 80 Legs . | . . . Wheels . | . . . Hover . | . . . Flight . | . . . Fastest Speed 50 | 50 160 160 Average Speed 159 | 156 160 160 Slowest Speed 160 | 160 160 160 Overloaded Moves . | . . . Propulsion Burnouts . | . . . Robots Hopped . | . . . Cave-ins Triggered . | . . . Exploration Rate (%) 26 | 6 44 29 Regions Visited 2 Branch Regions 1 Pre-discovered Areas 1 | . . 1 Known Exits Taken . | . . . Unknown Exits Taken 2 | 1 1 . Scrap Searched . | . . . Spaces Dug . | . . . Terrain Destroyed . | . . . Melee . | . . . Projectile . | . . . AOE . | . . . Terrain Rammed . | . . . Walls Destroyed . | . . . Machines Disabled . | . . . Actions | -11 -10 -10 --------- Run | Yrd Mat Min Total 602 | 79 408 115 Wait 86 | 5 78 3 Move 445 | 61 304 80 Hop . | . . . Pick Up 12 | 5 5 2 Fast Attach 6 | 5 1 . Attach 5 | 2 . 3 Detach . | . . . Swap 3 | . 3 . Drop 2 | . 1 1 Fire 42 | 1 15 26 Melee . | . . . Ram . | . . . Kick . | . . . Crush 1 | . 1 . Escape Stasis . | . . . Rewire . | . . . Trap . | . . . Miscellaneous . | . . . Route ------- -11/Scrapyard -10/Materials -10/Mines History --------- Turn | Location | Event 9 | -11/Scrapyard | Discovered new exit (range 15) 119 | -11/Scrapyard | Entered Materials 313 | -10/Materials | Build established: Mutant 594 | -10/Materials | Discovered new exit (range 6) 742 | -10/Materials | Entered Mines 749 | -10/Mines | Escorted by a lone wolf Derelict 769 | -10/Mines | Learned location of Storage (-8) 860 | -10/Mines | Assembled infested the area 865 | -10/Mines | Assisted by a Guerilla fighting off Assembled 934 | -10/Mines | Core integrity fell below 50% 941 | -10/Mines | Core integrity fell below 20% 950 | -10/Mines | Destroyed by as-14554 with Assembled Blade Last Messages --------------- 00927_ U-05 Engineer lays Concrete. 00928_ U-05 Engineer builds a Wall. 00928_ Lgt. Treads destroyed. 00930_ Ion Engine destroyed. 00930_ as-83477 destroyed. 00932_ The unstable cave ceiling collapses. 00932_ U-05 Engineer lays Concrete. 00934_ The unstable cave ceiling collapses. 00934_ Particle Gun destroyed. 00935_ U-05 Engineer lays Concrete. 00936_ Beam Cannon destroyed. 00937_ U-05 Engineer lays Concrete. 00938_ as-30514 destroyed. 00939_ U-05 Engineer lays Concrete. 00943_ R-06 Scavenger heat damages Sml. Storage Unit. 00943_ U-05 Engineer lays Concrete. 00944_ Lgt. Treads destroyed. 00945_ U-05 Engineer lays Concrete. 00950_ Lgt. Nuclear Core destroyed. Map ----- +----------------------------------------------------+ | ?????????????????????????????????????????????????? | | ?????????????????????????????????????????????????? | | ?????????????????????????????????????????????????? | | ?????????????????????????????????????????????????? | | ?????????????????????????????????????????????????? | | ?????????????????????????????????????????????????? | | ?????????????????????????????????????????????????? | | ?????????????????????????????????????????????????? | | ?????????????????????????????????????????????????? | | ?????????????????????????????????????????????????? | | ??????????????????????? ##?????????????????????? | | ????????????????????? ???????????????????? | | ????????????????????# ????????????????? | | ????????????????????# #???????????????? | | ????????????????????# #???????????????? | | ????????????????????# ????????????????? | | ????????????????????# ?????????????????? | | ???????????????????## ?????????????????? | | ???????????????##### ??????????????????? | | ??????????????## ???????????????????? | | ?????????????? #???????????????????? | | ?????????????? #?????#?????????????? | | ??????????????? ??# #?? ##????????????? | | ???????????????# ?## # # # ###??????????? | | ???????????????# #?# # # *% # ?????????? | | ???????????????# #?# #@a a ????????? | | ???????????????#"%## a a % ????????? | | ???????????????# " # # #????????? | | ??????????????## !% ## # #?????????? | | ??????######### *u a # ####?????????? | | ?????## a ### ## #????????????? | | ?????# r ???#???????????????? | | ?##### ### #??????????????????? | | ## ## ########?# # %"#?????????????????? | | # ##????????# #### % % #???????????????? | | #?????????# ??# ;####???????????????? | | ##?###????### #?####??????????????????? | | ## ## #??????? ##???????????????????????? | | # #????????#????????????????????????? | | # #?????????????????????????????????? | | ## ## ##?????????????????????????????????? | | ?####### #??????????????????????????????????? | | ???????# #?????????????????????????????????? | | ???????## #????????????????????????????????? | | ????????#### #????????????????????????????????? | | ????????????# ##????????????????????????????????? | | ?????????????###?????????????????????????????????? | | ?????????????????????????????????????????????????? | | | | | +----------------------------------------------------+ Best States ------------- Heat Dissipation 39 Energy Generation 14 Energy Capacity 250 Matter Stores 300 Matter Capacity 300 Sight Range 16 Terrain Scan Density 10 Evasion (%) 40 Recoil Reduction 2 Item Schematics ----------------- None Robot Schematics ------------------ None Fabricated ------------ Nothing Alien Tech Used ----------------- None Achievements -------------- None Challenges ------------ None Game ------ Seed MiniStasisNetwork Manual? 0 Play Time 00:15:14 Cumulative 18.1 hours Start 2025.03.04 @ 22:55:08 End 2025.03.05 @ 14:47:22 Sessions 2 Manual Loads 0 Difficulty Rogue Special Mode None Game No. 22 Rogue 22 Adventurer 0 Explorer 0 Win Type - Total 0 Types 0/0/0/0/0/0/0/0/0 Lore% 14 Gallery% 21 Achievement% 16 Wizard Run 0 Options --------- Layout 2 ASCII 0 Keyboard 1 Movement Numpad Keybinds 0 Fullscreen 1 Font 24/Smallcaps Map View 50x44 Zoom Use 0% Tactical HUD 1 Map Filters NONE Filters NONE Steam 1 RUN: 60fe8b34-e243-4db9-b378-b861198e7ade